Cogmind - Beta 15 *** ADVENTURER MODE // 2025.05.23 @ 01:26:34 Player: willyarr Result: Destroyed by 2A-AOP(R) with Subdweller Laser Performance ------------- Evolutions (0) 0 Regions Visited (3) 600 Robots Destroyed (18) 90 Value Destroyed (538) 538 Prototype IDs (4) 80 Alien Tech Used (0) 0 Bonus (50) 50 TOTAL SCORE: 1358 Bonus ------- Follower Combat Kills 50 Cogmind --------- Core Integrity 0/250 Matter 266/300 Energy 60/250 System Corruption 0% Temperature Cool (6) Movement Walking (260) Ox2 Location -10/Subcaves Parts ------- > --- POWER (1) -------- Ion Engine > --- PROPULSION (2) --- Aluminum Leg Aluminum Leg > --- UTILITY (2) ------ High-capacity Storage Unit > --- WEAPON (2) ------- (None) > --- INVENTORY (20) --- Heat Sink Medium Storage Unit Visual Processing Unit Sensor Array Sensor Array Faulty Experimental Sensor Array Seismic Detector Targeting Computer ECM Suite Core Shielding Utility Shielding Scrap Shield Light Assault Rifle Datajack Mining Laser Peak State ------------ > --- POWER ------------ Light Ion Engine > --- PROPULSION ------- Wheel Wheel > --- UTILITY ---------- High-capacity Storage Unit Weapon Shielding > --- WEAPON ----------- Beam Cannon Subdweller Machine Gun > --- INVENTORY -------- Ion Engine Ion Engine Aluminum Leg Aluminum Leg Heat Sink Medium Storage Unit Visual Processing Unit Sensor Array Sensor Array Experimental Sensor Array Seismic Detector Targeting Computer ECM Suite Core Shielding Utility Shielding Scrap Shield Light Assault Rifle Datajack Mining Laser [Rating: 11] Favorites ----------- Power Light Ion Engine Engine Light Ion Engine Propulsion Wheel Leg Aluminum Leg Wheel Wheel Utility Weapon Shielding Storage High-capacity Storage Unit Protection Weapon Shielding Weapon Light Assault Rifle Energy Gun Particle Gun Energy Cannon Beam Cannon Ballistic Gun Light Assault Rifle Special Weapon Mining Laser Build | -11 -10 -10 -10 ------- Run | Yrd Mat Min Sub Slots Evolved . | . . . . Power . | . . . . Propulsion . | . . . . Utility . | . . . . Weapon . | . . . . Parts Attached 20 | 5 6 4 5 Power 4 | 1 . 1 2 Engine 4 | 1 . 1 2 Core . | . . . . Reactor . | . . . . Propulsion 5 | 2 . 1 2 Treads . | . . . . Leg 2 | . . . 2 Wheel 3 | 2 . 1 . Hover . | . . . . Flight . | . . . . Utility 4 | . 4 . . Device . | . . . . Storage 2 | . 2 . . Processor . | . . . . Hackware . | . . . . Protection 2 | . 2 . . Artifact . | . . . . Weapon 7 | 2 2 2 1 Energy Gun 2 | 1 1 . . Energy Cannon 1 | . 1 . . Ballistic Gun 3 | 1 . 1 1 Ballistic Cannon . | . . . . Launcher . | . . . . Special Weapon 1 | . . 1 . Impact Weapon . | . . . . Slashing Weapon . | . . . . Piercing Weapon . | . . . . Special Melee Weapon . | . . . . Unidentified Prototypes . | . . . . Parts Lost 8 | . . 1 7 Power 3 | . . 1 2 Propulsion 2 | . . . 2 Utility 1 | . . . 1 Weapon 2 | . . . 2 Highest Loss Streak 7 | . . 1 7 To Critical Strikes . | . . . . Average Backups 14 | 2 11 19 19 Power 1 | . 1 1 1 Propulsion 1 | 1 1 2 2 Utility 7 | . 5 9 11 Weapon 2 | . 2 4 2 Tool/Special . | . . . . Unused Backups 15 | . . 2 13 Power . | . . . . Propulsion . | . . . . Utility 10 | . . . 10 Weapon 3 | . . 1 2 Tool/Special 2 | . . 1 1 Average Slot Usage (%) 98 | . 98 100 97 Engine 13 | . 14 14 13 Wheel 27 | . 27 28 27 Storage 13 | . 13 14 14 Protection 13 | . 13 14 13 Energy Gun 1 | . 3 . . Energy Cannon 12 | . 10 14 14 Ballistic Gun 13 | . 14 12 14 Peak Build Rating 11 | 5 8 9 11 Average Rating 8 | 3 7 8 10 On Entrance 5 | . 5 8 9 Naked Turns . | . . . . Heaviest Build 51 | 6 48 48 51 Greatest Support 20 | 20 20 20 20 Greatest Overweight (x) 2 | . 2 2 2 Average Overweight (x) 1 | . 1 2 2 Largest Inventory Capacity 20 | 5 20 20 20 Average Capacity 17 | 5 16 20 20 Most Carried 20 | 4 18 20 20 Average Carried 15 | 2 11 19 19 Final Capacity 20 | 5 20 20 20 Final Carried 20 | 4 18 20 16 Class Distribution -------------------- 100% | Mutant Dominant Class ---------------- Mutant | -10/Materials Mutant | -10/Mines Mutant | -10/Subcaves Resources | -11 -10 -10 -10 ----------- Run | Yrd Mat Min Sub Matter Collected 438 | 243 133 62 . Remotely . | . . . . Salvage Created 605 | 34 404 167 . Parts 38 | 2 26 10 . Haulers Intercepted . | . . . . Recyclers Shooed . | . . . . Parts Field Recycled . | . . . . Retrieved Matter . | . . . . Parts Self-Destructed 7 | . . . 7 Prevented . | . . . . Kills | -11 -10 -10 -10 ------- Run | Yrd Mat Min Sub Combat Hostiles Destroyed 15 | 1 10 4 . Guns 6 | 1 5 . . Cannons 8 | . 4 4 . AOE 1 | . 1 . . Classes Destroyed 3 | 1 2 . . Watcher 3 | . 3 . . Swarmer 3 | . 3 . . Grunt 12 | 1 7 4 . Best Kill Streak 3 | 1 3 2 . Combat Bots Only 3 | 1 3 2 . Max Kills in Single Turn 1 | 1 1 1 . Gunslinging . | . . . . Exploded 1 | . 1 . . Melee . | . . . . Uniques/NPCs Destroyed . | . . . . Combat | -11 -10 -10 -10 -------- Run | Yrd Mat Min Sub Hostile Shots Fired 91 | 2 31 8 50 Missed 26 | . 7 2 17 Hits 65 | 2 24 6 33 Projectile 65 | 2 24 6 33 Damage Taken 885 | 17 219 61 588 Core 256 | . 58 . 198 Absorbed by Shields . | . . . . Redirected to Shielding 55 | . 13 7 35 Ignored by Resistances 256 | 5 68 19 164 Regen/Repaired (Parts) 35 | . 35 . . Core Remaining (%) 100 | 100 . . . Volleys Fired 75 | 2 44 21 8 Largest 2 | 2 2 2 2 Hottest 160 | 60 80 160 90 Shots Fired 137 | 4 75 42 16 Gun 71 | 4 51 8 8 Cannon 53 | . 24 21 8 Launcher . | . . . . Special 13 | . . 13 . Kinetic 62 | 2 44 8 8 Thermal 66 | . 24 34 8 Explosive . | . . . . Electromagnetic 9 | 2 7 . . Robot Hit Streak 14 | 1 14 13 8 Robot Miss Streak 4 | 1 4 . 1 Penetration Max . | . . . . Secondary Targets . | . . . . Shots Hit Robots 78 | 2 50 12 14 Core Hits 29 | 1 20 6 2 Critical Kills . | . . . . Critical Parts Destroyed . | . . . . Critical Strikes . | . . . . Melee Attacks . | . . . . Impact . | . . . . Slashing . | . . . . Piercing . | . . . . Sneak Attacks . | . . . . Combat Hostiles . | . . . . Follow-up Attacks . | . . . . Damage Inflicted 1093 | 28 633 174 258 Guns 513 | 28 298 35 152 Cannons 557 | . 312 139 106 Explosions 23 | . 23 . . Melee . | . . . . Ramming . | . . . . Kinetic 392 | . 205 35 152 Thermal 580 | . 335 139 106 Explosive . | . . . . Electromagnetic 121 | 28 93 . . Impact . | . . . . Slashing . | . . . . Piercing . | . . . . Highest Corruption . | . . . . Average Corruption . | . . . . Corruption Purged . | . . . . Corruption Blocked . | . . . . Overload Shots . | . . . . Overflow Damage . | . . . . Projectiles . | . . . . Explosions . | . . . . Melee . | . . . . Knockbacks . | . . . . Impact . | . . . . Kinetic . | . . . . Secondary . | . . . . Self-Inflicted Damage . | . . . . Shots . | . . . . Rammed . | . . . . Targets Rammed . | . . . . Kicked . | . . . . Crushed . | . . . . Highest Temperature 340 | 52 170 340 . Average Temperature 96 | 31 52 136 . Received Heat Transfer 285 | 12 120 45 108 Siege Activations . | . . . . Martial Activations . | . . . . Shielding Activations . | . . . . Robots Disrupted . | . . . . Combat Hostiles . | . . . . Robots Corrupted . | . . . . Combat Hostiles . | . . . . Parts Fried 1 | . 1 . . Impact Corruptions . | . . . . Robots Melted . | . . . . Combat Hostiles . | . . . . Parts Melted . | . . . . Heat Transferred 1234 | . 716 296 222 Parts Sabotaged . | . . . . Parts Stolen . | . . . . Parts Stripped . | . . . . Power Chain Reactions 1 | . 1 . . Alert | -11 -10 -10 -10 ------- Run | Yrd Mat Min Sub Maximum Alert Level . | . . . . Low Security (%) 100 | 100 100 100 . Level 1 . | . . . . Level 2 . | . . . . Level 3 . | . . . . Level 4 . | . . . . Level 5 . | . . . . High Security . | . . . . Max Security . | . . . . Peak Influence 67 | 20 67 40 . Initial 5 | . 5 . . Average 8 | 2 12 3 . Influence Increases 450 | 20 299 131 . Destroy 0b10 Robot/C 340 | 20 200 120 . Destroy 0b10 Robot/NC 15 | . 15 . . Destroy Leader 56 | . 46 10 . Successful Hack 15 | . 15 . . Destroy Structure 9 | . 8 1 . Lose Combat Pursuer 15 | . 15 . . Influence Decreases 450 | 10 309 131 . Entered New Map 5 | . 5 . . Time Decay 435 | 10 304 121 . Lost Part 10 | . . 10 . Squads Dispatched . | . . . . Investigation . | . . . . Extermination . | . . . . Reinforcement . | . . . . Assault . | . . . . Garrison . | . . . . Intercept . | . . . . Searches Triggered . | . . . . Construction Impeded . | . . . . Haulers Reinforced . | . . . . Active Scanning Responses . | . . . . Cargo Convoy Interrupts . | . . . . Stealth | -11 -10 -10 -10 --------- Run | Yrd Mat Min Sub Distress Signals 1 | . 1 . . Communications Jammed . | . . . . Distress Signals . | . . . . Times Spotted 35 | 1 17 5 12 Peak Tracking Total 10 | 1 3 2 10 Tactical Retreats 1 | . 1 . . Traps | -11 -10 -10 -10 ------- Run | Yrd Mat Min Sub Traps Triggered . | . . . . Indirectly . | . . . . Trap Hack Attempts . | . . . . Triggered . | . . . . Disarmed . | . . . . Reprogrammed . | . . . . Reused . | . . . . Traps Extracted . | . . . . Installed . | . . . . Triggered . | . . . . Machines | -11 -10 -10 -10 ---------- Run | Yrd Mat Min Sub Machines Disabled . | . . . . Max in Single Turn . | . . . . Machines Repaired . | . . . . Machines Dismantled . | . . . . Machines Sabotaged . | . . . . Overloaded Fab Kills . | . . . . Hacking | -11 -10 -10 -10 --------- Run | Yrd Mat Min Sub Machines Accessed 9 | . 9 . . Terminals 7 | . 7 . . Fabricators . | . . . . Repair Stations 1 | . 1 . . Recycling Units 1 | . 1 . . Scanalyzers . | . . . . Garrison Access . | . . . . Total Hacks 33 | . 33 . . Successful 26 | . 26 . . Failed 7 | . 7 . . Catastrophic . | . . . . Database Lockouts . | . . . . Manual . | . . . . Terminals 24 | . 24 . . Fabricators . | . . . . Repair Stations 7 | . 7 . . Recycling Units 2 | . 2 . . Scanalyzers . | . . . . Garrison Access . | . . . . Terminal Hacks 19 | . 19 . . Record 9 | . 9 . . Robot Analysis 1 | . 1 . . Prototype ID Bank 3 | . 3 . . Branch Access Points 1 | . 1 . . Emergency Access Points 2 | . 2 . . Alert Level 2 | . 2 . . Locate Traps 1 | . 1 . . Fabricator Hacks . | . . . . Repair Station Hacks 5 | . 5 . . Scan Component 3 | . 3 . . Repair 2 | . 2 . . Recycling Unit Hacks 2 | . 2 . . Process 1 | . 1 . . Report Inventory 1 | . 1 . . Scanalyzer . | . . . . Garrison Access Hacks . | . . . . Unauthorized Hacks . | . . . . Terminals . | . . . . Fabricators . | . . . . Repair Stations . | . . . . Recycling Units . | . . . . Scanalyzers . | . . . . Garrison Access . | . . . . Data Cores Recovered . | . . . . Used . | . . . . Hacking Detections 4 | . 4 . . Full Trace Events . | . . . . Feedback Events . | . . . . Feedback Blocked . | . . . . Robot Schematics Acquired . | . . . . Robots Built . | . . . . Authchips . | . . . . Time . | . . . . Total Robot Build Rating . | . . . . Part Schematics Acquired . | . . . . Parts Built . | . . . . Authchips . | . . . . Time . | . . . . Total Part Build Rating . | . . . . Parts Repaired 2 | . 2 . . Time 52 | . 52 . . Parts Recycled . | . . . . Recycled Matter 177 | . 177 . . Retrieved Matter . | . . . . Retrieved Components . | . . . . Parts Scanalyzed . | . . . . Part Schematics Acquired . | . . . . Parts Damaged . | . . . . Bothacking | -11 -10 -10 -10 ------------ Run | Yrd Mat Min Sub Used RIF Installer . | . . . . Robots Hacked . | . . . . Non-combat . | . . . . Combat . | . . . . Robot Hacks Applied . | . . . . Relay Couplers Released . | . . . . Fabnet Peak Effective % . | . . . . Robots Rewired . | . . . . Allies Hacked . | . . . . Hacks Repelled . | . . . . Allies | -11 -10 -10 -10 -------- Run | Yrd Mat Min Sub Total Allies 1 | . . 1 . Largest Group 1 | . . 1 . Highest-Rated Group 31 | . . 31 . Highest-Rated Ally 31 | . . 31 . Total Orders . | . . . . Ally Attacks 5 | . . 5 . Total Damage 63 | . . 63 . Kills 2 | . . 2 . Allies Corrupted . | . . . . Allies Melted . | . . . . Intel | -11 -10 -10 -10 ------- Run | Yrd Mat Min Sub Active Infowar (turns) . | . . . . Robot Analysis Total 1 | . 1 . . Derelict Logs Recovered 2 | . . 1 1 Drone Launches . | . . . . Drone Recoveries . | . . . . Exploration | -11 -10 -10 -10 ------------- Run | Yrd Mat Min Sub Turns Passed 2417 | 80 1215 936 186 Spaces Moved 1838 | 76 981 643 138 Core 17 | 17 . . . Treads . | . . . . Legs . | . . . . Wheels 1821 | 59 981 643 138 Hover . | . . . . Flight . | . . . . Fastest Speed 50 | 50 80 110 110 Average Speed 102 | 73 99 110 110 Slowest Speed 110 | 80 110 110 110 Overloaded Moves . | . . . . Propulsion Burnouts . | . . . . Robots Hopped . | . . . . Potential Cave-ins . | . . . . Cave-ins Triggered . | . . . . Exploration Rate (%) 53 | 7 95 96 17 Regions Visited 3 Branch Regions 2 Pre-discovered Areas . | . . . . Known Exits Taken 1 | . 1 . . Unknown Exits Taken 2 | 1 . 1 . Scrap Searched 1 | . . 1 . Spaces Dug 3 | . . 3 . Terrain Destroyed 9 | . 5 4 . Melee . | . . . . Projectile 4 | . . 4 . AOE 5 | . 5 . . Terrain Rammed . | . . . . Walls Destroyed . | . . . . Machines Disabled . | . . . . Actions | -11 -10 -10 -10 --------- Run | Yrd Mat Min Sub Total 2215 | 96 1156 804 159 Wait 233 | 5 101 127 . Move 1835 | 75 980 642 138 Hop . | . . . . Pick Up 37 | 9 20 5 3 Fast Attach 1 | . 1 . . Attach 15 | 5 5 1 4 Detach . | . . . . Swap 8 | . 2 5 1 Drop 11 | . 3 3 5 Fire 75 | 2 44 21 8 Melee . | . . . . Ram . | . . . . Kick . | . . . . Crush . | . . . . Escape Stasis . | . . . . Rewire . | . . . . Trap . | . . . . Miscellaneous . | . . . . Route ------- -11/Scrapyard -10/Materials (discovered 5 exits: [*Mat x2] / *Min x2 / [*Sub]) -10/Mines (discovered 3 exits: [*Mat x2] / [*Sub]) -10/Subcaves History --------- Turn | Location | Event 2 | -11/Scrapyard | Met Revision 17 48 | -11/Scrapyard | Discovered new exit (range 8) 81 | -11/Scrapyard | Entered Materials 197 | -10/Materials | Discovered new exit (range 15) 303 | -10/Materials | Build established: Mutant 349 | -10/Materials | Repaired Wheel 377 | -10/Materials | Repaired Wheel 395 | -10/Materials | Identified exit to Mines 413 | -10/Materials | Discovered new exit (range 14) 1089 | -10/Materials | Discovered new exit (range 9) 1296 | -10/Materials | Entered Mines 1306 | -10/Mines | Found a damaged Exp. Sensor Array with a note attached 1309 | -10/Mines | Found Prototype Device 1367 | -10/Mines | Discovered new exit (range 14) 1391 | -10/Mines | Excavation squad dispatched 1391 | -10/Mines | A large section of the Mines collapsed 1501 | -10/Mines | Learned 4 Materials zone layouts 1528 | -10/Mines | Received a Mining Laser from a helpful Derelict 1557 | -10/Mines | Discovered new exit (range 4) 1766 | -10/Mines | Discovered new exit (range 12) 2232 | -10/Mines | Entered Subcaves 2233 | -10/Subcaves | Approached by a straggling Scientist 2264 | -10/Subcaves | Shifting Twisted Machinery released Sub. Machine Gun 2268 | -10/Subcaves | Shifting Twisted Machinery released Sub. Machine Gun 2347 | -10/Subcaves | Learned 2 Materials zone layouts 2391 | -10/Subcaves | Ambushed by swarm of Subdwellers 2391 | -10/Subcaves | Ambushed by Subdwellers from Twisted Machinery 2391 | -10/Subcaves | Ambushed by Subdwellers from Twisted Machinery 2394 | -10/Subcaves | Ambushed by Subdwellers from Twisted Machinery 2397 | -10/Subcaves | Ambushed by Subdwellers from Twisted Machinery 2397 | -10/Subcaves | Ambushed by Subdwellers from Twisted Machinery 2415 | -10/Subcaves | Core integrity fell below 50% 2418 | -10/Subcaves | Core integrity fell below 20% 2418 | -10/Subcaves | Destroyed by 2A-AOP(R) with Subdweller Laser Last Messages --------------- 02399_ 42-TAM(h) destroyed. 02402_ Subatomizers dissect the Sub. Optics. 02403_ Wheel destroyed. 02406_ 1D-7LC(R) affixes Scrap Shield Fragment to Scrap Shield. 02406_ Weapon Shielding destroyed. 02406_ G3-5OL(R) destroyed. 02407_ 0W-6QS(g) destroyed. 02410_ VG-JKN(R) affixes Scrap Shield Fragment to Scrap Shield. 02411_ Wheel destroyed. 02412_ MO-YJK(R) affixes Scrap Shield Fragment to Scrap Shield. 02413_ Subatomizers dissect the Carbon-fiber Leg. 02413_ Ion Engine destroyed. 02414_ Beam Cannon destroyed. 02415_ Sub. Machine Gun destroyed. 02417_ 2A-AOP(R) affixes Scrap Shield Fragment to Scrap Shield. Map ----- +----------------------------------------------------+ | ?????????????????????????????????????????????????? | | ?????????????????????????????????????????????????? | | ?????????????????????????????????????????????????? | | ?????????????????????????????????????????????????? | | ?????????????????????????????????????????????????? | | ?????????????????????????????????????????????????? | | ?????????????????????????????????????????????????? | | ?????????????????????????????????????????????????? | | ?????????????????????????????????????????????????? | | ?????????????????????????????????????????????????? | | ??????????????????????? ????????????????????????? | | ???????????????????????" ???????????????????????? | | ??????????????????????#" ???????????????????????? | | ?????????????????????##" ???????????????????????? | | ??????????????????####"" #??????????????????????? | | ?????????????????#"" ##?#####??????????????? | | ?????????????????#"" ### ???????????????? | | ????????????????## #???????????????? | | ????????????????? #??? ??????????? | | ??????????????????? ### ???????????? | | ????????????????????? #?# ;;;###??????????? | | ?????????????????????## ### R ! ; ##?????????? | | ?????????????????????#; %=&!*=;;;#?????????? | | ?????????????????????# RRRR =%% ##?????????? | | ?????????????????????# R%## ##????????? | | ?????????????????##### @ R#### ###????### | | ?????????????????# *%] ###??# ###### | | ???????????????### ##%R##???## ## | | ??????????????## ######????# # | | ??????????????# #??????# ## ### | | ??????????????# ### ##?????# #### #### | | ??????????????## ???###??????## #???# # ## | | ???????????????##??????????????## #????# | | ????????????????????????????????##?????# # | | ???????????????????????????????????????## ##### | | ???????????????????????????????????????# #??## | | ???????????????????????????????????????# #??# | | ?????????????????????????????????????? ?# | | ????????????????????????????????????? ### | | ???????????????????????????????????# ###?# | | ???????????????????????????????????# ##??# | | ??????????????????????????????????# #???# # | | ????????????????????????????????? #??# ? | | ???????????????????????????????? ???### ? | | ??????????????????????????????? ## ?????# ? | | ??????????????????????????????? #?## ?????##? | | ???????????????????????????????? #???## ???????? | | ????????????????????????????????????????? ???????? | | ????????????????????????????????????????? ???????? | | ????????????????????????????????????????? ???????? | +----------------------------------------------------+ Best States ------------- Heat Dissipation 25 Energy Generation 10 Energy Capacity 250 Matter Stores 300 Matter Capacity 300 Sight Range 16 Terrain Scan Density 10 Resistance: KI 20 Resistance: TH 20 Resistance: EX 20 Resistance: EM 20 Resistance: I 20 Resistance: S 20 Resistance: P 20 Utility Shielding 33 Weapon Shielding 33 Evasion (%) 50 Offensive Hacking 10 Item Schematics ----------------- None Robot Schematics ------------------ None Fabricated ------------ Nothing Repaired ---------- Wheel | 47% | -10/Materials Wheel | 65% | -10/Materials Alien Tech Used ----------------- None Achievements -------------- Part-time Mechanic Challenges ------------ None Game ------ Seed ShiftCoolantMallet Manual? 0 Play Time 00:30:42 Cumulative 3.5 hours Start 2025.05.23 @ 00:54:12 End 2025.05.23 @ 01:26:34 Sessions 1 Manual Loads 0 Difficulty Adventurer Special Mode None Game No. 3 Rogue 0 Adventurer 3 Explorer 0 Win Type - Total 0 Types 0/0/0/0/0/0/0/0/0/0 Lore% 3 Gallery% 8 Achievement% 9 Wizard Run 0 Options --------- Layout 1 ASCII 0 Keyboard 0 Movement Mouse Keybinds 0 Fullscreen 1 Font 24/Smallcaps Map View 50x35 Zoom Use 0% Tactical HUD 1 Map Filters NONE Filters NONE Steam 1 RUN: 3119bbb4-9789-4417-b0b3-91ccd29e3796